fUST/lending_fUST_20241004
["ID","MTS","AMOUNT","RATE_DAILY","PERIOD"]
[339803789,1727989832190,-552.84,0.00013698,2]
[339803791,1727989832200,-500.0,0.00013698,2]
[339803793,1727989832211,-500.0,0.00013698,2]
[339803795,1727989832221,-620.17,0.00013698,2]
[339803797,1727989832231,-312.12437106,0.00013698,2]
[339803799,1727989832241,-660.35,0.00013698,2]
[339803801,1727989832250,-500.0,0.00013698,2]
[339803803,1727989832260,-500.0,0.00013698,2]
[339803805,1727989832269,-500.0,0.00013698,2]
[339803807,1727989832279,-500.0,0.00013698,2]
[339803809,1727989832288,-500.0,0.00013698,2]
[339803810,1727989832297,-500.0,0.00013698,2]
[339803812,1727989832308,-500.0,0.00013698,2]
[339803814,1727989832318,-500.0,0.00013698,2]
[339803817,1727989832328,-653.58,0.00013698,2]
[339803819,1727989832337,-500.0,0.00013698,2]
[339803821,1727989832346,-688.27,0.00013698,2]
[339803823,1727989832356,-500.0,0.00013698,2]
[339803825,1727989832366,-500.0,0.00013698,2]
[339803827,1727989832376,-500.0,0.00013698,2]
[339803829,1727989832386,-500.0,0.00013698,2]
[339803831,1727989832395,-500.0,0.00013698,2]
[339803833,1727989832404,-500.0,0.00013698,2]
[339803835,1727989832414,-463.94706628,0.00013698,2]
[339803837,1727989832423,-656.74,0.00013698,2]
[339803839,1727989832432,-500.0,0.00013698,2]
[339803841,1727989832442,-500.0,0.00013698,2]
[339803843,1727989832452,-159.30885,0.00013724,2]
[339803845,1727989832462,-6361.47951315,0.00013832,2]
[339803846,1727989832472,-297.07577661,0.00013872,2]
[339803849,1727989832485,-864.67256512,0.00013872,2]
[339803851,1727989832495,-500.0,0.00013971,2]
[339803853,1727989832505,-500.0,0.00013971,2]
[339803855,1727989832514,-616.19630846,0.00013972,2]
[339803857,1727989832524,-29.13111942,0.00013972,2]
[339803859,1727989832536,-93.12864528,0.00013972,2]
[339803861,1727989832545,-500.0,0.00013972,2]
[339803863,1727989832558,-938.13,0.00013972,2]
[339803865,1727989832569,-500.0,0.00013972,2]
[339803867,1727989832578,-687.91,0.00013972,2]
[339803887,1727989832757,-575.22,0.00013972,2]
[339803889,1727989832768,-500.0,0.00013972,2]
[339803891,1727989832779,-482.11534958,0.00013972,2]
[339803894,1727989832793,-265.34465042,0.00013972,2]
[339803896,1727989832804,-500.0,0.00013972,2]
[339803898,1727989832815,-500.0,0.00013972,2]
[339803900,1727989832826,-500.0,0.00013972,2]
[339803903,1727989832837,-500.0,0.00013972,2]
[339803904,1727989832846,-500.0,0.00013972,2]
[339803906,1727989832856,-500.0,0.00013972,2]
[339803908,1727989832865,-500.0,0.00013972,2]
[339803911,1727989832875,-500.0,0.00013972,2]
[339803913,1727989832885,-1340.01,0.00013972,2]
[339803915,1727989832894,-572.14,0.00013972,2]
[339803917,1727989832903,-719.95,0.00013972,2]
[339803918,1727989832913,-500.0,0.00013972,2]
[339803920,1727989832922,-539.86,0.00013972,2]
[339803922,1727989832931,-932.83,0.00013972,2]
[339803924,1727989832940,-500.0,0.00013972,2]
[339803926,1727989832950,-500.0,0.00013972,2]
[339803928,1727989832959,-683.19,0.00013972,2]
[339803930,1727989832970,-521.78023399,0.00013972,2]
[339803932,1727989832980,-500.0,0.00013972,2]
[339803934,1727989832990,-764.97,0.00013972,2]
[339803936,1727989832999,-500.0,0.00013972,2]
[339803939,1727989833010,-98.59766358,0.00013972,2]
[339804070,1727989838039,-500.0,0.00013698,2]
[339804072,1727989838049,-500.0,0.00013698,2]
[339804074,1727989838059,-618.83488297,0.00013698,2]
[339804076,1727989838074,-626.53,0.00013698,2]
[339804078,1727989838084,-659.96,0.00013698,2]
[339804080,1727989838094,-401.40233642,0.00013972,2]
[339804081,1727989838103,-1725.00825389,0.00013972,2]
[339804084,1727989838121,-656.87,0.00013972,2]
[339804086,1727989838132,-14567.180912,0.00013972,2]
[339804089,1727989838160,-500.0,0.00013698,2]
[339804091,1727989838170,-6036.14083411,0.00013972,2]
[339804093,1727989838179,-500.0,0.00013972,2]
[339804094,1727989838188,-500.0,0.00013972,2]
[339804095,1727989838198,-500.0,0.00013972,2]
[339804096,1727989838209,-500.0,0.00013972,2]
[339804097,1727989838218,-694.64,0.00013972,2]
[339804098,1727989838228,-500.0,0.00013972,2]
[339804099,1727989838240,-953.52,0.00013972,2]
[339804100,1727989838250,-704.93,0.00013972,2]
[339804101,1727989838262,-1330.31,0.00013972,2]
[339804102,1727989838271,-500.0,0.00013972,2]
[339804103,1727989838281,-500.0,0.00013972,2]
[339804104,1727989838290,-722.74,0.00013972,2]
[339804105,1727989838300,-3149.94,0.00013972,2]
[339804106,1727989838309,-684.01,0.00013972,2]
[339804107,1727989838319,-500.0,0.00013972,2]
[339804108,1727989838329,-500.0,0.00013972,2]
[339804109,1727989838338,-500.0,0.00013972,2]
[339804110,1727989838348,-903.06,0.00013972,2]
[339804111,1727989838508,-624.02,0.00013972,2]
[339804112,1727989838518,-500.0,0.00013972,2]
[339804113,1727989838527,-500.0,0.00013972,2]
[339804114,1727989838537,-569.15,0.00013972,2]
[339804115,1727989838545,-500.0,0.00013972,2]
[339804116,1727989838555,-585.42,0.00013972,2]
[339804117,1727989838564,-500.0,0.00013972,2]
[339804118,1727989838573,-500.0,0.00013972,2]
[339804119,1727989838583,-1199.77,0.00013972,2]
[339804120,1727989838592,-500.0,0.00013972,2]
[339804121,1727989838601,-500.0,0.00013972,2]
[339804122,1727989838610,-638.62,0.00013972,2]
[339804123,1727989838619,-500.0,0.00013972,2]
[339804124,1727989838629,-534.14,0.00013972,2]
[339804125,1727989838640,-500.0,0.00013972,2]
[339804126,1727989838651,-500.0,0.00013972,2]
[339804127,1727989838660,-500.0,0.00013972,2]
[339804128,1727989838670,-500.0,0.00013972,2]
[339804129,1727989838679,-500.0,0.00013972,2]
[339804130,1727989838689,-560.64618183,0.00013972,2]
[339804131,1727989838698,-967.35,0.00013972,2]
[339804132,1727989838707,-500.0,0.00013972,2]
[339804133,1727989838716,-500.0,0.00013972,2]
[339804134,1727989838727,-500.0,0.00013972,2]
[339804135,1727989838737,-500.0,0.00013972,2]
[339804136,1727989838749,-801.74,0.00013972,2]
[339804137,1727989838759,-500.0,0.00013972,2]
[339804138,1727989838769,-500.0,0.00013972,2]
[339804139,1727989838778,-1859.71,0.00013972,2]
[339804140,1727989838787,-489.16073124,0.00013972,2]
[339804141,1727989838798,-500.0,0.00013972,2]
[339804142,1727989838808,-500.0,0.00013972,2]
[339804143,1727989838819,-500.0,0.00013972,2]
[339804144,1727989838830,-758.51,0.00013972,2]
[339804145,1727989838841,-500.0,0.00013972,2]
[339804146,1727989838851,-500.0,0.00013972,2]
[339804147,1727989838861,-500.0,0.00013972,2]
[339804148,1727989838870,-500.0,0.00013972,2]
[339804149,1727989838880,-500.0,0.00013972,2]
[339804150,1727989838890,-634.12,0.00013972,2]
[339804151,1727989838899,-1269.48442432,0.00013972,2]
[339804188,1727989840056,-255.5683535,0.00013698,2]
[339804195,1727989840116,-244.4316465,0.00013698,2]
[339804197,1727989840127,-500.0,0.00013698,2]
[339804199,1727989840136,-815.59557568,0.00013972,2]
[339804201,1727989840150,-500.0,0.00013972,2]
[339804203,1727989840160,-725.34,0.00013972,2]
[339804205,1727989840169,-500.0,0.00013972,2]
[339804207,1727989840178,-577.43958276,0.00013972,2]
[339804209,1727989840188,-500.0,0.00013972,2]
[339804211,1727989840198,-855.68,0.00013972,2]
[339804213,1727989840207,-500.0,0.00013972,2]
[339804215,1727989840218,-1018.47,0.00013972,2]
[339804217,1727989840228,-500.0,0.00013972,2]
[339804219,1727989840238,-500.0,0.00013972,2]
[339804221,1727989840248,-500.0,0.00013972,2]
[339804222,1727989840259,-500.0,0.00013972,2]
[339804223,1727989840269,-182.73421241,0.00013972,2]
[339804224,1727989840278,-224.57097525,0.00013972,2]
[339804225,1727989840290,-275.42902475,0.00013972,2]
[339804226,1727989840301,-500.0,0.00013972,2]
[339804227,1727989840311,-500.0,0.00013972,2]
[339804228,1727989840322,-757.68,0.00013972,2]
[339804229,1727989840331,-500.0,0.00013972,2]
[339804230,1727989840340,-500.0,0.00013972,2]
[339804231,1727989840349,-653.25,0.00013972,2]
[339804232,1727989840359,-500.0,0.00013972,2]
[339804233,1727989840367,-500.0,0.00013972,2]
[339804234,1727989840379,-500.0,0.00013972,2]
[339804235,1727989840389,-500.0,0.00013972,2]
[339804236,1727989840399,-500.0,0.00013972,2]
[339804237,1727989840409,-500.0,0.00013972,2]
[339804238,1727989840420,-595.27,0.00013972,2]
[339804239,1727989840431,-723.99,0.00013972,2]
[339804240,1727989840442,-597.05,0.00013972,2]
[339804241,1727989840453,-1176.11,0.00013972,2]
[339804242,1727989840464,-500.0,0.00013972,2]
[339804243,1727989840475,-500.0,0.00013972,2]
[339804244,1727989840485,-1156.37,0.00013972,2]
[339804245,1727989840494,-522.95022525,0.00013972,2]
[339804305,1727989843161,-500.0,0.00013698,2]
[339804307,1727989843171,-200.0,0.00013971,2]
[339804309,1727989843180,-375.48864695,0.00013971,2]
[339804329,1727989843364,-124.51135305,0.00013971,2]
[339804331,1727989843373,-187.18668242,0.00013971,2]
[339804333,1727989843385,-312.81331758,0.00013971,2]
[339804335,1727989843395,-500.0,0.00013971,2]
[339804337,1727989843404,-173.85957332,0.00013971,2]
[339804339,1727989843414,-500.0,0.00013971,2]
[339804341,1727989843423,-500.0,0.00013971,2]
[339804343,1727989843432,-500.0,0.00013971,2]
[339804345,1727989843442,-500.0,0.00013971,2]
[339804348,1727989843452,-500.0,0.00013971,2]
[339804350,1727989843462,-500.0,0.00013971,2]
[339804352,1727989843471,-500.0,0.00013971,2]
[339804354,1727989843480,-500.0,0.00013971,2]
[339804356,1727989843490,-500.0,0.00013971,2]
[339804358,1727989843500,-500.0,0.00013971,2]
[339804360,1727989843509,-500.0,0.00013971,2]
[339804362,1727989843518,-500.0,0.00013971,2]
[339804364,1727989843528,-429.45135326,0.00013971,2]
[339804428,1727990216566,155.0,0.000209,120]
[339804432,1727990827172,-177.16,0.00010959,2]
[339804433,1727990827195,-885.85,0.00010959,2]
[339804434,1727990827218,-1434.4786627,0.00012306,2]
[339804435,1727990827243,-160.508506,0.00012482,2]
[339804436,1727990827264,-228.9186452,0.00012488,2]
[339804437,1727990827284,-261.132167,0.00012603,2]
[339804438,1727990827307,-160.508506,0.00012699,2]
[339804439,1727990827329,-160.508506,0.00012916,2]
[339804440,1727990827351,-160.508506,0.00013133,2]
[339804441,1727990827372,-183.148358,0.00013428,2]
[339804442,1727990827393,-187.308324,0.00013428,2]
[339804443,1727990827414,-187.308322,0.00013428,2]
[339804444,1727990827434,-1547.03807412,0.00013588,2]
[339804445,1727990946205,-541.0,0.00010959,2]
[339804490,1727991032293,-2243.83384073,0.00013578,2]
[339804492,1727991032303,-300.0,0.00013597,2]
[339804494,1727991032314,-300.0,0.00013597,2]
[339804496,1727991032325,-3656.67406325,0.00013598,2]
[339804497,1727991032335,-4124.35804796,0.00013598,2]
[339804498,1727991032351,-1014.67046642,0.00013598,2]
[339804499,1727991032364,-4166.8379149,0.00013598,2]
[339804500,1727991032373,-1000.0,0.00013598,2]
[339804501,1727991032383,-476.15523601,0.00013627,2]
[339804502,1727991032394,-183.148358,0.00013652,2]
[339804503,1727991032404,-920.95222805,0.00013678,2]
[339804504,1727991032413,-17534.633788,0.00013678,2]
[339804505,1727991032423,-3159.06420615,0.00013678,2]
[339804506,1727991032435,-2789.84504576,0.00013688,2]
[339804507,1727991032447,-3459.7879075,0.00013688,2]
[339804514,1727991038147,-3463.23127707,0.00013688,2]
[339804515,1727991038207,-29038.55617,0.00013688,2]
[339804518,1727991040156,-8007.60303427,0.00013688,2]
[339804519,1727991040168,-8424.1712164,0.00013688,2]
[339804520,1727991040178,-500.0,0.00013697,2]
[339804521,1727991040188,-41924.89208631,0.00013698,2]
[339804524,1727991043540,-1040.88133072,0.00013698,2]
[339804525,1727991043552,-26004.35613752,0.00013698,2]
[339804526,1727991043562,-500.0,0.00013698,2]
[339804527,1727991043571,-500.0,0.00013698,2]
[339804528,1727991043583,-500.0,0.00013698,2]
[339804529,1727991043595,-500.0,0.00013698,2]
[339804530,1727991043605,-500.0,0.00013698,2]
[339804531,1727991043615,-500.0,0.00013698,2]
[339804532,1727991043624,-500.0,0.00013698,2]
[339804533,1727991043635,-175.42090453,0.00013698,2]
[339804534,1727991043644,-500.0,0.00013698,2]
[339804535,1727991043654,-500.0,0.00013698,2]
[339804536,1727991043664,-500.0,0.00013698,2]
[339804537,1727991043674,-500.0,0.00013698,2]
[339804538,1727991043684,-340.37835631,0.00013698,2]
[339804539,1727991043693,-500.0,0.00013698,2]
[339804540,1727991043703,-500.0,0.00013698,2]
[339804541,1727991043712,-500.0,0.00013698,2]
[339804542,1727991043721,-500.0,0.00013698,2]
[339804543,1727991043731,-500.0,0.00013698,2]
[339804544,1727991043741,-500.0,0.00013698,2]
[339804545,1727991043750,-500.0,0.00013698,2]
[339804546,1727991043759,-500.0,0.00013698,2]
[339804547,1727991043769,-500.0,0.00013698,2]
[339804548,1727991043790,-500.0,0.00013698,2]
[339804549,1727991043799,-486.95229471,0.00013698,2]
[339804550,1727991043808,-450.24952514,0.00013698,2]
[339804551,1727991043817,-500.0,0.00013698,2]
[339804552,1727991043826,-161.29786596,0.00013698,2]
[339804553,1727991043835,-500.0,0.00013698,2]
[339804554,1727991043844,-500.0,0.00013698,2]
[339804555,1727991043854,-500.0,0.00013698,2]
[339804556,1727991043863,-500.0,0.00013698,2]
[339804557,1727991043873,-589.46386146,0.00013698,2]
[339804558,1727991043882,-500.0,0.00013698,2]
[339804559,1727991043891,-500.0,0.00013698,2]
[339804560,1727991043900,-500.0,0.00013698,2]
[339804561,1727991043909,-500.0,0.00013698,2]
[339804562,1727991043918,-500.0,0.00013698,2]
[339804563,1727991043927,-500.0,0.00013698,2]
[339804564,1727991043936,-500.0,0.00013698,2]
[339804565,1727991043946,-500.0,0.00013698,2]
[339804566,1727991043956,-500.0,0.00013698,2]
[339804567,1727991043966,-500.0,0.00013698,2]
[339804568,1727991043976,-500.0,0.00013698,2]
[339804569,1727991043988,-500.0,0.00013698,2]
[339804570,1727991043998,-171.60054629,0.00013698,2]
[339804571,1727991044008,-500.0,0.00013698,2]
[339804572,1727991044019,-500.0,0.00013698,2]
[339804573,1727991044031,-500.0,0.00013698,2]
[339804574,1727991044042,-774.47,0.00013698,2]
[339804575,1727991044051,-571.88,0.00013698,2]
[339804576,1727991044062,-500.0,0.00013698,2]
[339804577,1727991044071,-545.74,0.00013698,2]
[339804578,1727991044081,-500.0,0.00013698,2]
[339804579,1727991044091,-500.0,0.00013698,2]
[339804580,1727991044101,-500.0,0.00013698,2]
[339804581,1727991044111,-500.0,0.00013698,2]
[339804582,1727991044121,-596.22,0.00013698,2]
[339804583,1727991044131,-500.0,0.00013698,2]
[339804584,1727991044141,-154.22769096,0.00013698,2]
[339804585,1727991044151,-500.0,0.00013698,2]
[339804586,1727991044162,-643.22,0.00013698,2]
[339804587,1727991044173,-319.0330912,0.00013698,2]
[339804588,1727991044184,-500.331281,0.00013698,2]
[339804589,1727991044194,-500.0,0.00013698,2]
[339804590,1727991044207,-500.0,0.00013698,2]
[339804591,1727991044217,-500.0,0.00013698,2]
[339804592,1727991044227,-642.61748189,0.00013698,2]
[339804593,1727991044238,-547.98,0.00013698,2]
[339804594,1727991044249,-500.0,0.00013698,2]
[339804595,1727991044260,-518.08,0.00013698,2]
[339804596,1727991044274,-701.65,0.00013698,2]
[339804597,1727991044286,-500.0,0.00013698,2]
[339804598,1727991044296,-500.0,0.00013698,2]
[339804599,1727991044305,-500.0,0.00013698,2]
[339804600,1727991044314,-536.43834119,0.00013698,2]
[339804601,1727991044325,-500.0,0.00013698,2]
[339804602,1727991044334,-500.0,0.00013698,2]
[339804603,1727991044344,-500.0,0.00013698,2]
[339804604,1727991044354,-500.0,0.00013698,2]
[339804605,1727991044364,-500.0,0.00013698,2]
[339804606,1727991044374,-500.0,0.00013698,2]
[339804607,1727991044584,-500.0,0.00013698,2]
[339804608,1727991044594,-500.0,0.00013698,2]
[339804609,1727991044604,-500.0,0.00013698,2]
[339804610,1727991044615,-500.0,0.00013698,2]
[339804611,1727991044625,-500.0,0.00013698,2]
[339804612,1727991044635,-620.52,0.00013698,2]
[339804613,1727991044645,-500.0,0.00013698,2]
[339804614,1727991044655,-500.0,0.00013698,2]
[339804615,1727991044665,-500.0,0.00013698,2]
[339804616,1727991044675,-599.75196994,0.00013698,2]
[339804617,1727991044686,-500.0,0.00013698,2]
[339804618,1727991044696,-500.0,0.00013698,2]
[339804619,1727991044708,-340.44050449,0.00013698,2]
[339804620,1727991044720,-500.0,0.00013698,2]
[339804621,1727991044733,-500.0,0.00013698,2]
[339804622,1727991044745,-500.0,0.00013698,2]
[339804623,1727991044757,-500.0,0.00013698,2]
[339804624,1727991044767,-500.0,0.00013698,2]
[339804625,1727991044778,-500.0,0.00013698,2]
[339804626,1727991044787,-500.0,0.00013698,2]
[339804627,1727991044797,-500.0,0.00013698,2]
[339804628,1727991044807,-500.0,0.00013698,2]
[339804629,1727991044817,-500.0,0.00013698,2]
[339804630,1727991044827,-567.93,0.00013698,2]
[339804631,1727991044838,-500.0,0.00013698,2]
[339804632,1727991044847,-647.66,0.00013698,2]
[339804633,1727991044857,-500.0,0.00013698,2]
[339804634,1727991044866,-500.0,0.00013698,2]
[339804635,1727991044876,-500.0,0.00013698,2]
[339804636,1727991044885,-500.0,0.00013698,2]
[339804637,1727991044895,-500.0,0.00013698,2]
[339804638,1727991044904,-500.0,0.00013698,2]
[339804639,1727991044914,-500.0,0.00013698,2]
[339804640,1727991044923,-500.0,0.00013698,2]
[339804641,1727991044934,-500.0,0.00013698,2]
[339804642,1727991044945,-706.6,0.00013698,2]
[339804643,1727991044955,-500.0,0.00013698,2]
[339804644,1727991044964,-500.0,0.00013698,2]
[339804645,1727991044975,-500.0,0.00013698,2]
[339804646,1727991044985,-500.0,0.00013698,2]
[339804647,1727991044995,-500.0,0.00013698,2]
[339804648,1727991045005,-500.0,0.00013698,2]
[339804649,1727991045016,-500.0,0.00013698,2]
[339804650,1727991045027,-500.0,0.00013698,2]
[339804651,1727991045037,-500.0,0.00013698,2]
[339804652,1727991045047,-500.0,0.00013698,2]
[339804653,1727991045056,-500.0,0.00013698,2]
[339804654,1727991045065,-500.0,0.00013698,2]
[339804655,1727991045075,-500.0,0.00013698,2]
[339804656,1727991045084,-500.0,0.00013698,2]
[339804657,1727991045093,-500.0,0.00013698,2]
[339804658,1727991045104,-821.45,0.00013698,2]
[339804659,1727991045114,-500.0,0.00013698,2]
[339804660,1727991045124,-500.0,0.00013698,2]
[339804661,1727991045134,-500.0,0.00013698,2]
[339804662,1727991045145,-500.0,0.00013698,2]
[339804663,1727991045154,-500.0,0.00013698,2]
[339804664,1727991045164,-500.0,0.00013698,2]
[339804665,1727991045174,-500.0,0.00013698,2]
[339804666,1727991045183,-500.0,0.00013698,2]
[339804667,1727991045192,-500.0,0.00013698,2]
[339804668,1727991045202,-500.0,0.00013698,2]
[339804669,1727991045212,-500.0,0.00013698,2]
[339804670,1727991045221,-510.02573244,0.00013698,2]
[339804671,1727991045231,-500.0,0.00013698,2]
[339804672,1727991045241,-696.78,0.00013698,2]
[339804673,1727991045250,-500.0,0.00013698,2]
[339804674,1727991045259,-500.0,0.00013698,2]
[339804675,1727991045269,-289.81,0.00013698,2]
[339804676,1727991045280,-500.0,0.00013698,2]
[339804677,1727991045290,-500.0,0.00013698,2]
[339804678,1727991045299,-500.0,0.00013698,2]
[339804679,1727991045309,-500.0,0.00013698,2]
[339804680,1727991045318,-500.0,0.00013698,2]
[339804681,1727991045328,-342.42835709,0.00013698,2]
[339804682,1727991045337,-500.0,0.00013698,2]
[339804683,1727991045347,-500.0,0.00013698,2]
[339804684,1727991045356,-500.0,0.00013698,2]
[339804685,1727991045367,-686.64,0.00013698,2]
[339804686,1727991045376,-599.02,0.00013698,2]
[339804687,1727991045386,-500.0,0.00013698,2]
[339804688,1727991045395,-500.0,0.00013698,2]
[339804689,1727991045404,-500.0,0.00013698,2]
[339804690,1727991045413,-500.0,0.00013698,2]
[339804691,1727991045423,-500.0,0.00013698,2]
[339804692,1727991045433,-764.13,0.00013698,2]
[339804693,1727991045443,-500.0,0.00013698,2]
[339804694,1727991045452,-500.0,0.00013698,2]
[339804695,1727991045462,-554.29658279,0.00013698,2]
[339804696,1727991045472,-500.0,0.00013698,2]
[339804697,1727991045482,-500.0,0.00013698,2]
[339804698,1727991045491,-500.0,0.00013698,2]
[339804699,1727991045501,-500.0,0.00013698,2]
[339804700,1727991045510,-500.0,0.00013698,2]
[339804701,1727991045519,-500.0,0.00013698,2]
[339804702,1727991045529,-440.05530629,0.00013698,2]
[339804703,1727991045549,-59.94469371,0.00013698,2]
[339804704,1727991045559,-899.04,0.00013698,2]
[339804705,1727991045568,-500.0,0.00013698,2]
[339804706,1727991045577,-488.18561771,0.00013698,2]
[339804707,1727991045590,-588.53,0.00013698,2]
[339804708,1727991045600,-500.0,0.00013698,2]
[339804709,1727991045610,-500.0,0.00013698,2]
[339804710,1727991045619,-500.0,0.00013698,2]
[339804711,1727991045630,-500.0,0.00013698,2]
[339804712,1727991045640,-459.24699551,0.00013698,2]
[339804713,1727991045652,-40.75300449,0.00013698,2]
[339804714,1727991045661,-500.0,0.00013698,2]
[339804715,1727991045672,-500.0,0.00013698,2]
[339804716,1727991045682,-500.0,0.00013698,2]
[339804717,1727991045691,-500.0,0.00013698,2]
[339804718,1727991045702,-413.34699551,0.00013698,2]
[339804719,1727991045716,-86.65300449,0.00013698,2]
[339804720,1727991045727,-793.17,0.00013698,2]
[339804721,1727991045738,-500.0,0.00013698,2]
[339804722,1727991045749,-500.0,0.00013698,2]
[339804723,1727991045760,-500.0,0.00013698,2]
[339804724,1727991045769,-500.84893367,0.00013698,2]
[339804725,1727991045781,-1228.34,0.00013698,2]
[339804726,1727991045792,-500.0,0.00013698,2]
[339804727,1727991045803,-500.0,0.00013698,2]
[339804728,1727991045814,-516.53,0.00013698,2]
[339804729,1727991045824,-500.0,0.00013698,2]
[339804730,1727991045836,-607.95,0.00013698,2]
[339804731,1727991045846,-500.0,0.00013698,2]
[339804732,1727991045855,-500.0,0.00013698,2]
[339804733,1727991045864,-504.82293083,0.00013698,2]
[339804734,1727991045873,-500.0,0.00013698,2]
[339804735,1727991045883,-500.0,0.00013698,2]
[339804736,1727991045892,-540.84,0.00013698,2]
[339804737,1727991045901,-500.0,0.00013698,2]
[339804738,1727991045910,-500.0,0.00013698,2]
[339804739,1727991045921,-500.0,0.00013698,2]
[339804740,1727991045932,-500.0,0.00013698,2]
[339804741,1727991045942,-500.0,0.00013698,2]
[339804742,1727991045951,-514.29,0.00013698,2]
[339804743,1727991045960,-1219.45,0.00013698,2]
[339804744,1727991045970,-675.56,0.00013698,2]
[339804745,1727991045979,-500.0,0.00013698,2]
[339804746,1727991045989,-500.0,0.00013698,2]
[339804747,1727991046000,-500.0,0.00013698,2]
[339804748,1727991046009,-500.0,0.00013698,2]
[339804749,1727991046019,-500.0,0.00013698,2]
[339804750,1727991046031,-500.0,0.00013698,2]
[339804751,1727991046041,-500.0,0.00013698,2]
[339804752,1727991046051,-255.57080715,0.00013698,2]
[339804753,1727991046060,-500.0,0.00013698,2]
[339804754,1727991046070,-500.0,0.00013698,2]
[339804755,1727991046081,-692.63,0.00013698,2]
[339804756,1727991046090,-500.0,0.00013698,2]
[339804757,1727991046100,-500.0,0.00013698,2]
[339804758,1727991046111,-500.0,0.00013698,2]
[339804759,1727991046122,-500.0,0.00013698,2]
[339804760,1727991046134,-612.01,0.00013698,2]
[339804761,1727991046144,-561.03,0.00013698,2]
[339804762,1727991046157,-500.0,0.00013698,2]
[339804763,1727991046167,-500.0,0.00013698,2]
[339804764,1727991046176,-500.0,0.00013698,2]
[339804765,1727991046186,-500.0,0.00013698,2]
[339804766,1727991046195,-500.0,0.00013698,2]
[339804767,1727991046205,-500.0,0.00013698,2]
[339804768,1727991046215,-500.0,0.00013698,2]
[339804769,1727991046225,-500.0,0.00013698,2]
[339804770,1727991046234,-500.0,0.00013698,2]
[339804771,1727991046244,-500.0,0.00013698,2]
[339804772,1727991046253,-500.0,0.00013698,2]
[339804773,1727991046264,-500.0,0.00013698,2]
[339804774,1727991046274,-500.0,0.00013698,2]
[339804775,1727991046284,-500.0,0.00013698,2]
[339804776,1727991046293,-500.0,0.00013698,2]
[339804777,1727991046303,-500.0,0.00013698,2]
[339804778,1727991046313,-500.0,0.00013698,2]
[339804779,1727991046322,-500.0,0.00013698,2]
[339804780,1727991046331,-503.71835591,0.00013698,2]
[339804781,1727991046341,-500.0,0.00013698,2]
[339804782,1727991046351,-500.0,0.00013698,2]
[339804783,1727991046362,-500.0,0.00013698,2]
[339804784,1727991046373,-540.86,0.00013698,2]
[339804785,1727991046383,-500.0,0.00013698,2]
[339804786,1727991046393,-726.9,0.00013698,2]
[339804787,1727991046402,-500.0,0.00013698,2]
[339804788,1727991046412,-500.0,0.00013698,2]
[339804789,1727991046422,-500.0,0.00013698,2]
[339804790,1727991046432,-1001.38,0.00013698,2]
[339804791,1727991046443,-598.02,0.00013698,2]